Cogmind - Beta 16 @@@ ROGUE MODE // 2026.01.17 @ 11:00:33 Player: DreamCore Result: Destroyed by Y-45 Defender with Beam Rifle Performance ------------- Evolutions (0) 0 Regions Visited (2) 400 Robots Destroyed (27) 135 Value Destroyed (595) 595 Prototype IDs (0) 0 Alien Tech Used (0) 0 Bonus (0) 0 TOTAL SCORE: 1130 Bonus ------- None Cogmind --------- Core Integrity 0/250 Matter 165/300 Energy 92/100 System Corruption 0% Temperature Cool (9) Movement Walking (260) Ox2 Location -10/Mines Parts ------- > --- POWER (1) -------- (None) > --- PROPULSION (2) --- Aluminum Leg > --- UTILITY (2) ------ Large Storage Unit Terrain Scanner > --- WEAPON (2) ------- Particle Gun Light Assault Rifle > --- INVENTORY (15) --- Light Nuclear Core Light Treads Aluminum Leg Aluminum Leg Aluminum Leg Aluminum Leg Aluminum Leg Improved Heat Sink Large Matter Pod (150) Sensor Array Terrain Scan Processor Targeting Computer Small Laser Mining Laser Peak State ------------ > --- POWER ------------ Ion Engine > --- PROPULSION ------- Aluminum Leg Aluminum Leg > --- UTILITY ---------- Large Storage Unit Terrain Scanner > --- WEAPON ----------- Particle Gun Grenade Launcher > --- INVENTORY -------- Light Nuclear Core Light Treads Aluminum Leg Aluminum Leg Aluminum Leg Aluminum Leg Aluminum Leg Improved Heat Sink Large Matter Pod Sensor Array Terrain Scan Processor Targeting Computer Small Laser Light Assault Rifle Mining Laser [Rating: 10] Favorites ----------- Power Ion Engine Engine Ion Engine Propulsion Aluminum Leg Treads Light Treads Leg Aluminum Leg Wheel Wheel Utility Transport Network Coupler Device Tractor Beam Storage Small Storage Unit Processor Transport Network Coupler Weapon Assault Rifle Energy Gun Small Laser Ballistic Gun Assault Rifle Launcher Grenade Launcher Build | -11 -10 -10 ------- Run | Yrd Mat Min Slots Evolved . | . . . Power . | . . . Propulsion . | . . . Utility . | . . . Weapon . | . . . Parts Attached 19 | . 16 3 Power 3 | . 3 . Engine 3 | . 3 . Core . | . . . Reactor . | . . . Propulsion 7 | . 7 . Treads 2 | . 2 . Leg 3 | . 3 . Wheel 2 | . 2 . Hover . | . . . Flight . | . . . Utility 4 | . 3 1 Device 2 | . 1 1 Storage 1 | . 1 . Processor 1 | . 1 . Hackware . | . . . Protection . | . . . Artifact . | . . . Weapon 5 | . 3 2 Energy Gun 1 | . . 1 Energy Cannon . | . . . Ballistic Gun 3 | . 2 1 Ballistic Cannon . | . . . Launcher 1 | . 1 . Special Weapon . | . . . Impact Weapon . | . . . Slashing Weapon . | . . . Piercing Weapon . | . . . Special Melee Weapon . | . . . Unidentified Prototypes . | . . . Parts Lost 6 | . 1 5 Power 1 | . . 1 Propulsion 2 | . 1 1 Utility 1 | . . 1 Weapon 2 | . . 2 Highest Loss Streak 3 | . 1 3 To Critical Strikes . | . . . Average Backups 10 | 6 10 14 Power . | 1 . 1 Propulsion 2 | 4 2 4 Utility 4 | . 4 5 Weapon 2 | 1 2 3 Tool/Special . | . . . Unused Backups 18 | . 6 12 Power 2 | . 1 1 Propulsion 7 | . 3 4 Utility 7 | . 2 5 Weapon 2 | . . 2 Tool/Special . | . . . Average Slot Usage (%) 97 | . 97 95 Engine 13 | . 13 13 Treads 7 | . 8 . Leg 15 | . 13 26 Wheel 4 | . 5 . Device 1 | . 1 3 Storage 14 | . 14 14 Processor 11 | . 11 9 Energy Gun 4 | . 4 6 Ballistic Gun 22 | . 23 17 Peak Build Rating 10 | 6 9 10 Average Rating 7 | 6 7 8 On Entrance 7 | 6 6 9 Avg Prop Armor Cover (%) 5 | . 5 . Naked Turns . | . . . Heaviest Build 32 | 13 29 32 Greatest Support 40 | 20 40 20 Greatest Overweight (x) 4 | . 4 3 Average Overweight (x) . | . . 1 Largest Inventory Capacity 15 | 8 15 15 Average Capacity 11 | 8 10 15 Most Carried 15 | 6 15 15 Average Carried 10 | 6 10 14 Final Capacity 15 | 8 15 15 Final Carried 14 | 6 14 14 Class Distribution -------------------- 67% | Mutant 32% | Scavenger-Mutant Dominant Class ---------------- Mutant | -10/Materials Scavenger-Mutant | -10/Mines Resources | -11 -10 -10 ----------- Run | Yrd Mat Min Matter Collected 917 | 200 548 169 Remotely 156 | . 156 . Salvage Created 813 | . 639 174 Parts 59 | . 47 12 Haulers Intercepted 2 | . 2 . Recyclers Shooed 4 | . 4 . Parts Field Recycled . | . . . Retrieved Matter . | . . . Parts Self-Destructed . | . . . Prevented . | . . . Parts Restored . | . . . Kills | -11 -10 -10 ------- Run | Yrd Mat Min Combat Hostiles Destroyed 18 | . 11 7 Guns 13 | . 11 2 AOE 5 | . . 5 Classes Destroyed 7 | . 7 . Worker 2 | . 2 . Builder 1 | . 1 . Hauler 2 | . 2 . Recycler 1 | . 1 . Watcher 3 | . 3 . Swarmer 6 | . 3 3 Grunt 12 | . 8 4 Best Kill Streak 5 | . 3 5 Combat Bots Only 5 | . 2 5 Max Kills in Single Turn 3 | . 2 3 Gunslinging 1 | . 1 . Exploded 3 | . . 3 Melee . | . . . Uniques/NPCs Destroyed . | . . . Combat | -11 -10 -10 -------- Run | Yrd Mat Min Hostile Shots Fired 132 | . 52 80 Missed 41 | . 15 26 Hits 91 | . 37 54 Projectile 91 | . 37 54 Critical Strikes 3 | . . 3 Damage Taken 1010 | . 401 609 Core 250 | . 102 148 Absorbed by Shields . | . . . Core Remaining (%) 100 | 100 . . Volleys Fired 101 | . 80 21 Largest 2 | . 2 2 Hottest 95 | . 60 95 Shots Fired 201 | . 160 41 Gun 197 | . 159 38 Cannon . | . . . Launcher 4 | . 1 3 Special . | . . . Kinetic 147 | . 116 31 Thermal 50 | . 43 7 Explosive 4 | . 1 3 Electromagnetic . | . . . Robot Hit Streak 9 | . 9 5 Robot Miss Streak 6 | . 4 6 Penetration Max . | . . . Secondary Targets 1 | . 1 . Max Gunslinging Chain 1 | . 1 . Shots Hit Robots 99 | . 79 20 Core Hits 43 | . 33 10 Critical Kills 1 | . 1 . Critical Parts Destroyed 1 | . 1 . Critical Strikes 2 | . 2 . Destroy 2 | . 2 . Melee Attacks . | . . . Impact . | . . . Slashing . | . . . Piercing . | . . . Sneak Attacks . | . . . Combat Hostiles . | . . . Follow-up Attacks . | . . . Damage Inflicted 1411 | . 990 421 Guns 1233 | . 986 247 Cannons . | . . . Explosions 171 | . . 171 Melee . | . . . Ramming 7 | . 4 3 Kinetic 981 | . 762 219 Thermal 252 | . 224 28 Explosive 171 | . . 171 Electromagnetic . | . . . Impact . | . . . Slashing . | . . . Piercing . | . . . Highest Corruption . | . . . Average Corruption . | . . . Corruption Purged . | . . . Corruption Blocked . | . . . Overload Shots . | . . . Overflow Damage . | . . . Projectiles . | . . . Explosions . | . . . Melee . | . . . Knockbacks . | . . . Impact . | . . . Kinetic . | . . . Secondary . | . . . Self-Inflicted Damage . | . . . Shots . | . . . Rammed 1 | . 1 . Targets Rammed 2 | . 1 1 Kicked 1 | . . 1 Crushed . | . . . Highest Temperature 96 | . 6 96 Average Temperature 27 | . 4 33 Received Heat Transfer 426 | . 156 270 Siege Activations . | . . . Martial Activations . | . . . Shielding Activations . | . . . Robots Disrupted . | . . . Combat Hostiles . | . . . Robots Corrupted . | . . . Combat Hostiles . | . . . Parts Fried . | . . . Impact Corruptions . | . . . Robots Melted . | . . . Combat Hostiles . | . . . Parts Melted . | . . . Heat Transferred 574 | . 500 74 Parts Sabotaged . | . . . Parts Stolen . | . . . Parts Stripped . | . . . Power Chain Reactions . | . . . Alert | -11 -10 -10 ------- Run | Yrd Mat Min Maximum Alert Level . | . . . Low Security (%) 100 | 100 100 100 Level 1 . | . . . Level 2 . | . . . Level 3 . | . . . Level 4 . | . . . Level 5 . | . . . High Security . | . . . Max Security . | . . . Peak Influence 130 | . 76 130 Initial . | . . . Average 25 | . 22 47 Influence Increases 582 | . 392 190 Destroy 0b10 Robot/C 360 | . 220 140 Destroy 0b10 Robot/NC 45 | . 45 . Destroy Leader 90 | . 60 30 Successful Hack 23 | . 23 . Disable Machine 15 | . 15 . Destroy Structure 34 | . 14 20 Lose Combat Pursuer 15 | . 15 . Influence Decreases 512 | . 392 120 Time Decay 462 | . 382 80 Lost Part 50 | . 10 40 Squads Dispatched 2 | . 2 . Investigation 2 | . 2 . Extermination . | . . . Reinforcement . | . . . Assault . | . . . Garrison . | . . . Intercept . | . . . Searches Triggered . | . . . Construction Impeded . | . . . Haulers Reinforced . | . . . Active Scanning Responses . | . . . Cargo Convoy Interrupts . | . . . Stealth | -11 -10 -10 --------- Run | Yrd Mat Min Distress Signals 2 | . 2 . Communications Jammed . | . . . Distress Signals . | . . . Times Spotted 26 | . 18 8 Peak Tracking Total 5 | . 3 5 Tactical Retreats 1 | . 1 . Traps | -11 -10 -10 ------- Run | Yrd Mat Min Traps Triggered 4 | . 4 . Indirectly . | . . . Trap Hack Attempts . | . . . Triggered . | . . . Disarmed . | . . . Reprogrammed . | . . . Reused . | . . . Traps Extracted . | . . . Installed . | . . . Triggered . | . . . Machines | -11 -10 -10 ---------- Run | Yrd Mat Min Machines Disabled 1 | . 1 . Max in Single Turn 1 | . 1 . Machines Repaired . | . . . Machines Dismantled . | . . . Machines Sabotaged . | . . . Overloaded Fab Kills . | . . . Hacking | -11 -10 -10 --------- Run | Yrd Mat Min Machines Accessed 11 | . 11 . Terminals 8 | . 8 . Fabricators . | . . . Repair Stations 1 | . 1 . Recycling Units 2 | . 2 . Scanalyzers . | . . . Garrison Access . | . . . Total Hacks 32 | . 32 . Successful 16 | . 16 . Failed 16 | . 16 . Catastrophic 2 | . 2 . Database Lockouts . | . . . Manual 21 | . 21 . Terminals 25 | . 25 . Fabricators . | . . . Repair Stations 2 | . 2 . Recycling Units 5 | . 5 . Scanalyzers . | . . . Garrison Access . | . . . Terminal Hacks 6 | . 6 . Record 3 | . 3 . Robot Analysis 1 | . 1 . Terminal Index 1 | . 1 . Locate Traps 1 | . 1 . Fabricator Hacks . | . . . Repair Station Hacks 1 | . 1 . Scan Component 1 | . 1 . Recycling Unit Hacks 2 | . 2 . Report Inventory 2 | . 2 . Scanalyzer . | . . . Garrison Access Hacks . | . . . Unauthorized Hacks 7 | . 7 . Terminals 5 | . 5 . Botnet 5 | . 5 . Fabricators . | . . . Repair Stations . | . . . Recycling Units 2 | . 2 . Reject 2 | . 2 . Scanalyzers . | . . . Garrison Access . | . . . Data Cores Recovered . | . . . Used . | . . . Hacking Detections 10 | . 10 . Full Trace Events 1 | . 1 . Feedback Events . | . . . Feedback Blocked . | . . . Robot Schematics Acquired . | . . . Robots Built . | . . . Authchips . | . . . Time . | . . . Total Robot Build Rating . | . . . Part Schematics Acquired . | . . . Parts Built . | . . . Authchips . | . . . Time . | . . . Total Part Build Rating . | . . . Part Studies Acquired . | . . . Parts Repaired . | . . . Time . | . . . Parts Recycled . | . . . Recycled Matter . | . . . Retrieved Matter . | . . . Retrieved Components . | . . . Parts Scanalyzed . | . . . Part Schematics Acquired . | . . . Parts Damaged . | . . . Bothacking | -11 -10 -10 ------------ Run | Yrd Mat Min Used RIF Installer . | . . . Robots Hacked . | . . . Non-combat . | . . . Combat . | . . . Robot Hacks Applied . | . . . Relay Couplers Released . | . . . Fabnet Peak Effective % . | . . . Robots Rewired . | . . . Allies Hacked . | . . . Hacks Repelled . | . . . Allies | -11 -10 -10 -------- Run | Yrd Mat Min Total Allies . | . . . Largest Group . | . . . Highest-Rated Group . | . . . Highest-Rated Ally . | . . . Total Orders . | . . . Ally Attacks . | . . . Total Damage . | . . . Kills . | . . . Allies Corrupted . | . . . Allies Melted . | . . . Intel | -11 -10 -10 ------- Run | Yrd Mat Min Active Infowar (turns) 1381 | . 1204 177 Terrain 49 | . . 49 T.N.C. 1332 | . 1204 128 Robot Analysis Total 1 | . 1 . Derelict Logs Recovered . | . . . Drone Launches . | . . . Drone Recoveries . | . . . Exploration | -11 -10 -10 ------------- Run | Yrd Mat Min Turns Passed 1600 | 5 1400 195 Spaces Moved 784 | 5 720 59 Core 2 | . 2 . Treads 182 | . 182 . Legs 419 | 5 355 59 Wheels 181 | . 181 . Hover . | . . . Flight . | . . . Fastest Speed 80 | 120 80 190 Average Speed 152 | 120 148 203 Slowest Speed 330 | 120 260 330 Overloaded Moves . | . . . Propulsion Burnouts . | . . . Robots Hopped . | . . . Potential Cave-ins . | . . . Cave-ins Triggered . | . . . Exploration Rate (%) 37 | 2 98 12 Regions Visited 2 Branch Regions 1 Pre-discovered Areas . | . . . Known Exits Taken . | . . . Unknown Exits Taken 2 | 1 1 . Scrap Searched . | . . . Spaces Dug . | . . . Terrain Destroyed 30 | . 11 19 Melee . | . . . Projectile . | . . . AOE 30 | . 11 19 Terrain Rammed . | . . . Walls Destroyed . | . . . Machines Disabled . | . . . Actions | -11 -10 -10 --------- Run | Yrd Mat Min Total 985 | 4 889 92 Wait 37 | . 36 1 Move 782 | 4 719 59 Hop . | . . . Pick Up 23 | . 19 4 Fast Attach 8 | . 8 . Attach 5 | . 2 3 Detach . | . . . Swap 13 | . 11 2 Drop 14 | . 13 1 Fire 101 | . 80 21 Melee . | . . . Ram . | . . . Kick 1 | . . 1 Crush 1 | . 1 . Escape Stasis . | . . . Rewire . | . . . Trap . | . . . Miscellaneous . | . . . Route ------- -11/Scrapyard -10/Materials (discovered 4 exits: [*Mat x3] / [*Min]) -10/Mines History --------- Turn | Location | Event 1 | -11/Scrapyard | Discovered new exit (range 2) 6 | -11/Scrapyard | Entered Materials 176 | -10/Materials | Discovered new exit (range 16) 309 | -10/Materials | Build established: Mutant 397 | -10/Materials | Discovered new exit (range 5) 775 | -10/Materials | Discovered new exit (range 15) 1109 | -10/Materials | Discovered new exit (range 11) 1351 | -10/Materials | Build established: Scavenger-Mutant 1406 | -10/Materials | Entered Mines 1423 | -10/Mines | Core integrity fell below 50% 1575 | -10/Mines | Core integrity fell below 20% 1601 | -10/Mines | Destroyed by Y-45 Defender with Beam Rifle Last Messages --------------- 01533_ G-47 Trooper destroyed. 01534_ The unstable cave ceiling collapses. 01534_ Transport Network Coupler destroyed. 01540_ S-10 Pest destroyed. 01546_ Acquired 4 matter. 01550_ Acquired Lgt. Assault Rifle. 01551_ Dropped Assault Rifle. 01555_ Acquired 9 matter. 01563_ The unstable cave ceiling collapses. 01566_ Acquired Aluminum Leg. 01570_ Acquired 22 matter. 01574_ Acquired 40 matter. 01574_ Aluminum Leg destroyed. 01574_ Critical hit (Burn: +37). 01584_ U-05 Engineer lays Concrete. 01585_ U-05 Engineer builds a Wall. 01590_ U-05 Engineer lays Concrete. 01591_ Grenade Launcher destroyed. 01591_ Ion Engine destroyed. 01592_ U-05 Engineer builds a Wall. Map ----- +----------------------------------------------------+ | ?????????????????????????????????????????????????? | | ?????????????????????????????????????????????????? | | ?????????????????????????????????????????????????? | | ?????????????????????????????????????????????????? | | ?????????????????????????????????????????????????? | | ?????????????????????????????????????????????????? | | ?????????????????????????????????????????????????? | | ?????????????????????????????????????????????????? | | ?????????????????????????????????????????????????? | | ?????????????????????????????????????????????????? | | ?????????????????????????????????????????????????? | | ?????????????????????????????????????????????????? | | ?????????????????????????????????????????????????? | | ?????????????????????????????????????????????????? | | ???????????????????????????#??????#??????????????? | | ????????????????????????????####?????????????????? | | ???????????????????????????? "##????????????????? | | ???????????????????????????? !!#????????????????? | | ???????????????????????????? !!#????????????????? | | ????????????????????????###? $ #?????????????????? | | ??????????????????????### ## Y###???#????????????? | | ??????????????????????# ## ##???????????? | | ????????????????#?#??## Y #???????????? | | ???????????#?????????# #???????????? | | ??????????????????#### ??????? | | ???????????????#??# @# ###### ##????????? | | ? ??????????## # ##???????? #?????????? | | ???? ######u[ ###???#????????????????? | | ???????????# %= ##????#???????????????? | | ???????????# ####### * #??#?????????????????? | | ?????????????????### #????????????????????? | | ??????????????????## ##????????????????????? | | ???????????????#??# ########????????????????? | | ??????????????????# ## #????????????????? | | ??????????????????## ## """ #????????????????? | | ???????????????????#### ## """!#????????????????? | | ??????????????????????# ## """ #????????????????? | | ??????????????????????# ## =*!#????????????????? | | ?????????????? ???????# ## = #????????????????? | | ??????????????????????# ## [#????????????????? | | ?????????????????#????# ## #????????????????? | | ??????????????????????# #????????????????? | | ??????????????????????###########????????????????? | | ?????????????????????????????????????????????????? | | ?????????????????????????????????????????????????? | | ?????????????????????????????????????????????????? | | | | | | | | | +----------------------------------------------------+ Best States ------------- Heat Dissipation 25 Energy Generation 10 Energy Capacity 250 Matter Stores 300 Matter Capacity 300 Sight Range 16 Terrain Scan Range 14 Terrain Scan Density 10 Evasion (%) 55 Recoil Reduction 2 Item Schematics ----------------- None Robot Schematics ------------------ None Fabricated ------------ Nothing Repaired ---------- Nothing Studied --------- None Alien Tech Used ----------------- None Achievements -------------- None Challenges ------------ None Game ------ Seed GlidesysSubatomicPerforator Manual? 0 Play Time 00:20:36 Cumulative 52.7 hours Start 2026.01.17 @ 10:38:48 End 2026.01.17 @ 11:00:33 Sessions 1 Manual Loads 0 Difficulty Rogue Special Mode None Game No. 64 Rogue 64 Adventurer 0 Explorer 0 Win Type - Total 1 Types 1/0/0/0/0/0/0/0/0/0 Lore% 21 Gallery% 31 Achievement% 21 Wizard Run 0 Options --------- Layout 0 ASCII 0 Keyboard 0 Movement Mouse Keybinds 0 Fullscreen 0 Font 16/SmallcapsGlow Map View 88x55 Zoom Use 0% Tactical HUD 1 Map Filters NONE Filters NONE Steam 1 RUN: 65d63fa5-e8fd-4754-8741-4a9ac3dab4ed